bitfinex/quotes_ETHUSD_20220309
["timestamp","ask_amount","ask_price","bid_price","bid_amount"]
[1646847986993,1.46001128,2744.8,2744.5,1.84124054]
[1646847987194,0.54831128,2744.8,2744.6,0.00392805]
[1646847988197,0.54831128,2744.8,2744.6,1.51479875]
[1646847988496,0.54831128,2744.8,2744.6,1.51872682]
[1646847988895,0.526,2745.1,2744.6,1.51872682]
[1646847989097,1.82292,2745.0,2744.6,1.51872682]
[1646847989297,1.45282034,2745.1,2744.6,1.51872682]
[1646847989498,1.45282034,2745.1,2744.6,2.19443929]
[1646847989698,1.45282034,2745.1,2744.7,0.00392794]
[1646847989899,1.45282034,2745.1,2744.7,1.51872669]
[1646847990558,1.45282034,2745.1,2744.7,1.51479875]
[1646847990858,1.45282034,2745.1,2744.8,2.42616875]
[1646847991057,1.45282034,2745.1,2744.9,1.51479875]
[1646847995994,11.11,2745.0,2744.9,1.51479875]
[1646847996195,1.87432861,2745.0,2744.9,1.51479875]
[1646847996395,1.87432861,2745.0,2744.9,2.42622875]
[1646847996596,1.87432861,2745.0,2744.9,2.72622875]
[1646847996796,12.98432861,2745.0,2744.9,1.81479875]
[1646847997095,11.36850083,2745.0,2744.9,1.81479875]
[1646847997297,11.36850083,2745.0,2744.9,1.51479875]
[1646847998345,11.89450083,2745.0,2744.9,1.51479875]
[1646847999848,13.19450083,2745.0,2744.9,1.51479875]
[1646848000049,16.69450083,2745.0,2744.9,1.51479875]
[1646848000250,16.39450083,2745.0,2744.8,1.51479875]
[1646848000453,16.39450083,2745.0,2744.9,1.51479875]
[1646848000650,19.51095965,2745.0,2744.9,1.51479875]
[1646848000949,19.51095965,2745.0,2744.8,1.51479875]
[1646848001149,16.01095965,2745.0,2744.9,1.51479875]
[1646848001611,16.01095965,2745.0,2744.8,1.51479875]
[1646848002215,1.78450083,2745.0,2744.8,1.51479875]
[1646848002616,0.78450083,2745.0,2744.8,1.51479875]
[1646848002816,0.78450083,2745.0,2744.8,2.42615875]
[1646848003122,0.78450083,2745.0,2744.8,2.72615875]
[1646848003318,0.25850083,2745.0,2744.9,1.51479875]
[1646848004516,0.25850083,2745.0,2744.9,1.58883921]
[1646848005018,1.45282034,2745.1,2744.9,1.58883921]
[1646848005247,1.45282034,2745.1,2745.0,1.51479875]
[1646848010100,0.54145034,2745.1,2744.9,2.56847975]
[1646848010306,1.82264,2745.4,2745.0,2.19443929]
[1646848010500,1.82264,2745.4,2745.1,0.91122]
[1646848010702,1.82264,2745.4,2745.2,0.0829059]
[1646848010907,1.82264,2745.4,2745.3,2.51773652]
[1646848012845,1.82264,2745.4,2745.3,1.51479875]
[1646848016597,1.82264,2745.4,2745.2,0.3829059]
[1646848016797,1.82264,2745.4,2745.3,1.51442201]
[1646848018101,0.20729841,2745.4,2745.3,1.51442201]
[1646848018506,0.73329841,2745.4,2745.3,1.51442201]
[1646848018703,11.84329841,2745.4,2745.3,1.51442201]
[1646848018902,19.1799239,2745.4,2745.3,1.51442201]
[1646848019102,16.6799239,2745.4,2745.3,1.51442201]
[1646848020546,0.73329841,2745.4,2745.3,1.51442201]
[1646848021449,0.20729841,2745.4,2745.3,1.51442201]
[1646848026699,0.11835235,2745.5,2745.3,1.51442201]
[1646848026902,0.00392708,2745.5,2745.4,2.08286064]
[1646848027101,0.00392708,2745.5,2745.4,3.59728265]
[1646848027301,0.00392708,2745.5,2745.4,4.27692319]
[1646848027954,5.46017769,2745.8,2745.5,0.07436895]
[1646848028252,5.46017769,2745.8,2745.5,2.6313153]
[1646848028253,0.00150968,2745.6,2745.5,2.6313153]
[1646848028452,0.011667,2746.2,2745.6,5.5]
[1646848028652,0.011667,2746.2,2745.8,1.58935538]
[1646848028653,0.55555555,2746.2,2745.8,1.58935538]
[1646848028856,0.55555555,2746.2,2745.9,1.58024431]
[1646848029051,0.011667,2746.4,2746.0,0.08944998]
[1646848029252,0.011667,2746.4,2746.1,1.12710243]
[1646848029253,0.55074283,2746.4,2746.1,1.12710243]
[1646848030053,0.55074283,2746.4,2746.2,0.07489522]
[1646848030456,0.55223871,2746.4,2746.2,0.07489522]
[1646848031510,0.55074283,2746.4,2746.2,0.07489522]
[1646848031706,0.55492396,2746.4,2746.2,0.07489522]
[1646848032306,0.56922796,2746.4,2746.2,0.07489522]
[1646848032706,0.56504683,2746.4,2746.2,0.07489522]
[1646848032907,0.56922796,2746.4,2746.1,0.91079]
[1646848033304,0.020971,2746.3,2746.1,0.91079]
[1646848034111,0.02515223,2746.3,2746.1,0.91079]
[1646848034506,0.55115223,2746.3,2746.1,0.91079]
[1646848035144,0.546971,2746.3,2746.1,0.91079]
[1646848035346,0.55115223,2746.3,2746.1,0.91079]
[1646848036350,0.546971,2746.3,2746.1,0.91079]
[1646848036551,0.55107383,2746.3,2746.1,0.91079]
[1646848037551,0.546971,2746.3,2746.1,0.91079]
[1646848037753,1.46205383,2746.3,2746.1,0.91079]
[1646848038154,1.44108283,2746.3,2746.1,0.91079]
[1646848038554,2.38701683,2746.4,2746.3,0.69977553]
[1646848039006,0.55074283,2746.4,2746.3,0.69977553]
[1646848039203,0.55074283,2746.4,2746.3,0.79007787]
[1646848039407,1.15957587,2746.7,2746.3,0.79007787]
[1646848039606,0.02807587,2746.7,2746.4,0.0762417]
[1646848039806,0.02807587,2746.7,2746.4,0.9871417]
[1646848039807,0.011667,2746.7,2746.4,0.9871417]
[1646848040414,0.91096,2746.5,2746.4,0.9871417]
[1646848040809,0.923674,2746.5,2746.4,0.9871417]
[1646848041208,0.923674,2746.5,2746.4,0.0762417]
[1646848044150,0.923674,2746.5,2746.3,0.69977553]
[1646848044951,0.92785779,2746.5,2746.3,0.69977553]
[1646848045954,0.923674,2746.5,2746.3,0.69977553]
[1646848046152,0.92785779,2746.5,2746.3,0.69977553]
[1646848046998,0.923674,2746.5,2746.3,0.69977553]
[1646848047200,1.843129,2746.4,2746.3,0.69977553]
[1646848047398,6.39303251,2746.4,2746.3,0.69977553]
[1646848047603,6.91903251,2746.4,2746.3,0.69977553]
[1646848048002,3.41903251,2746.4,2746.3,0.69977553]
[1646848049104,2.369129,2746.4,2746.3,0.69977553]
[1646848052554,2.369129,2746.4,2746.3,2.21373557]
[1646848052555,2.34795,2746.4,2746.3,2.21373557]
[1646848052956,2.361221,2746.4,2746.3,2.21373557]
[1646848053357,2.361221,2746.4,2746.3,2.21375318]
[1646848053559,2.361221,2746.4,2746.3,0.69977553]
[1646848053996,2.361221,2746.4,2746.3,2.21375621]
[1646848055004,1.835221,2746.4,2746.3,2.21375621]
[1646848055198,0.91488588,2746.5,2746.3,2.29680817]
[1646848055398,0.91488588,2746.5,2746.4,1.59706576]
[1646848055599,0.91096,2746.5,2746.4,1.39256633]
[1646848055800,0.91489207,2746.5,2746.4,1.39256633]
[1646848056699,0.91096,2746.5,2746.4,1.39256633]
[1646848061597,0.5590082,2746.7,2746.5,0.7038685]
[1646848061801,0.00393156,2746.6,2746.5,0.7038685]
[1646848062603,0.5590082,2746.7,2746.5,0.7038685]
[1646848063004,0.9290855,2746.7,2746.6,0.08436505]
[1646848063603,0.9147715,2746.7,2746.6,0.08436505]
[1646848063803,0.91084,2746.7,2746.6,0.08436505]
[1646848065452,0.91084,2746.7,2746.5,0.7038685]
[1646848065647,0.029168,2746.6,2746.5,0.7038685]
[1646848071613,0.9147715,2746.7,2746.5,0.78683078]
[1646848072211,0.9298715,2746.7,2746.5,0.78683078]
[1646848072412,0.92594,2746.7,2746.5,0.78683078]
[1646848072649,0.92987145,2746.7,2746.5,0.78683078]
[1646848072853,0.021927,2746.6,2746.5,0.78683078]
[1646848073055,0.041515,2746.6,2746.5,0.78683078]
[1646848073359,0.019588,2746.6,2746.5,0.78683078]
[1646848073756,0.019588,2746.6,2746.5,0.78281578]
[1646848075360,14.629588,2746.6,2746.5,0.6998535]
[1646848075558,3.519588,2746.6,2746.5,2.21411445]
[1646848075758,4.519588,2746.6,2746.5,2.21411445]
[1646848076899,1.019588,2746.6,2746.5,2.21411445]
[1646848077399,0.969588,2746.6,2746.5,2.21411445]
[1646848077804,0.9147715,2746.7,2746.5,2.21411445]
[1646848078006,0.9147715,2746.7,2746.6,1.51426095]
[1646848078405,0.91084,2746.7,2746.6,1.51426095]
[1646848078610,0.91477145,2746.7,2746.6,1.51426095]
[1646848078803,0.93724945,2746.7,2746.6,1.51426095]
[1646848079607,0.933318,2746.7,2746.6,1.51426095]
[1646848082053,0.883318,2746.7,2746.6,1.51426095]
[1646848082457,0.86084,2746.7,2746.6,1.51426095]
[1646848082657,0.00393141,2746.8,2746.7,1.61487684]
[1646848082858,0.00393141,2746.8,2746.7,3.12913779]
[1646848083056,4.74371578,2746.9,2746.7,3.12913779]
[1646848083258,4.74371578,2746.9,2746.8,1.51426095]
[1646848083458,0.53674162,2746.9,2746.8,1.60198691]
[1646848084306,0.5328103,2746.9,2746.8,1.60198691]
[1646848085606,0.9107,2747.0,2746.8,1.60198691]
[1646848085806,0.91463123,2747.0,2746.9,1.51426095]
[1646848086608,0.9107,2747.0,2746.9,1.51426095]
[1646848086911,0.014001,2747.1,2746.9,4.8636118]
[1646848086912,0.00393114,2747.1,2746.9,4.8636118]
[1646848087109,0.00393114,2747.1,2746.9,1.51426095]
[1646848087308,0.00393114,2747.1,2747.0,1.51426095]
[1646848087510,0.00393114,2747.1,2747.0,1.5863077]
[1646848087756,0.00393114,2747.1,2747.0,4.94271105]
[1646848087956,0.014001,2747.6,2747.0,1.5863077]
[1646848088157,0.014001,2747.7,2747.2,0.08629914]
[1646848088358,1.50780683,2747.8,2747.4,0.08676919]
[1646848088556,1.50780683,2747.8,2746.9,1.04240538]
[1646848088557,0.94877096,2747.8,2747.5,1.51426095]
[1646848088758,0.94877096,2747.8,2747.6,1.51426095]
[1646848088759,0.96284196,2747.8,2747.6,1.51426095]
[1646848088962,0.96309896,2747.8,2747.7,1.51361081]
[1646848089157,0.96309896,2747.8,2747.3,1.51361081]
[1646848089358,0.96459329,2747.8,2747.7,0.95917015]
[1646848090158,0.96309896,2747.8,2747.7,0.95917015]
[1646848090467,0.94877096,2747.8,2747.7,0.06885539]
[1646848090662,0.96292796,2747.8,2747.1,0.08215169]
[1646848090860,0.015434,2747.6,2747.2,1.51364232]
[1646848091061,0.91054,2747.5,2747.3,0.07164856]
[1646848091261,0.91054,2747.5,2747.4,1.51364232]
[1646848091516,0.924779,2747.5,2747.4,1.51364232]
[1646848091711,0.92886452,2747.5,2747.4,1.51364232]
[1646848092313,0.92886452,2747.5,2747.1,1.51364232]
[1646848092512,0.91462552,2747.5,2747.2,1.59799967]
[1646848092715,0.91462552,2747.5,2747.3,1.51364232]
[1646848092716,0.91054,2747.5,2747.3,1.51364232]
[1646848092914,0.018602,2747.4,2747.3,1.51364232]
[1646848093117,0.02268761,2747.4,2747.3,1.51364232]
[1646848093316,0.00408561,2747.4,2747.3,1.51364232]
[1646848093515,0.01813061,2747.4,2747.3,1.51364232]
[1646848093915,0.014045,2747.4,2747.3,1.51364232]
[1646848098658,0.014641,2747.4,2747.3,1.51364232]
[1646848098922,3.514641,2747.4,2747.0,1.2384]
[1646848099109,0.020154,2747.1,2746.7,1.68917034]
[1646848099313,1.82167,2747.3,2746.8,1.51407202]
[1646848099314,0.926069,2747.0,2746.8,1.51407202]
[1646848100112,0.92979355,2747.0,2746.8,1.51407202]
[1646848101209,0.91085,2747.0,2746.8,1.51407202]
[1646848101412,0.91457455,2747.0,2746.8,1.51407202]
[1646848102013,1.45649452,2747.0,2746.8,1.51407202]
[1646848102413,1.45276997,2747.0,2746.8,1.51407202]
[1646848102652,3.12167,2747.3,2747.1,0.14443885]
[1646848102855,2.12167,2747.3,2747.2,1.51407202]
[1646848103054,3.12167,2747.3,2747.2,1.51407202]
[1646848103254,1.82167,2747.3,2747.1,0.14443885]
[1646848103454,2.82167,2747.3,2747.2,1.51402051]
[1646848104256,5.5,2747.2,2746.7,1.68917034]
[1646848104461,5.5,2747.2,2746.8,1.5142255]
[1646848104462,3.5,2747.1,2746.8,1.5142255]
[1646848104656,0.999588,2746.9,2746.8,1.5142255]
[1646848105056,4.799588,2746.9,2746.8,1.5142255]
[1646848105256,1.21953728,2746.8,2746.7,1.61487684]
[1646848105560,5.71912528,2746.8,2746.7,1.61487684]
[1646848105758,2.21912528,2746.8,2746.7,1.61487684]
[1646848106159,5.71912528,2746.8,2746.7,1.61487684]
[1646848107813,4.5,2746.7,2746.5,0.6998535]
[1646848108014,1.8221,2746.7,2746.5,0.6998535]
[1646848108214,0.999588,2746.6,2746.5,0.6998535]
[1646848108413,2.821688,2746.7,2746.5,0.6998535]
[1646848108614,3.821688,2746.7,2746.5,0.6998535]
[1646848108815,4.121688,2746.7,2746.5,0.6998535]
[1646848109215,3.5,2746.6,2746.5,0.6998535]
[1646848109917,3.5,2746.6,2746.3,6.83881833]
[1646848109918,5.0,2746.5,2746.3,6.83881833]
[1646848110157,3.5,2746.4,2746.3,6.83881833]
[1646848110354,3.5,2746.4,2746.3,1.37165833]
[1646848111057,0.91135,2746.1,2745.6,0.00418779]
[1646848111257,12.02135,2746.1,2745.6,0.00418779]
[1646848111854,11.11,2746.0,2745.3,1.67860538]
[1646848112063,12.09016638,2745.9,2745.3,1.67860538]
[1646848112258,0.91133,2745.8,2745.6,0.00406188]
[1646848113060,0.91133,2745.8,2745.3,1.67860538]
[1646848113260,4.41133,2745.8,2745.3,1.0]
[1646848113460,0.999588,2745.7,2745.6,0.00406191]
[1646848113660,4.499588,2745.7,2745.6,0.00406191]
[1646848114304,4.499588,2745.7,2745.3,1.0]
[1646848114506,1.2135733,2745.4,2745.3,1.0]
[1646848114810,2.1249733,2745.4,2745.3,1.0]
[1646848115605,0.9114,2745.4,2745.3,1.0]
[1646848115808,3.5,2745.8,2745.3,1.0]
[1646848115809,1.82233,2745.9,2745.3,1.08877795]
[1646848116008,1.82233,2745.9,2745.4,0.08067905]
[1646848117109,1.82233,2745.9,2745.5,0.00405051]
[1646848117313,0.91113,2745.7,2745.5,0.00405051]
[1646848117510,6.21790459,2745.6,2745.5,0.00405051]
[1646848117989,6.21790459,2745.6,2745.4,0.08067905]
[1646848118187,6.21790459,2745.6,2745.4,0.08472965]
[1646848119288,6.21790459,2745.6,2745.4,0.08067905]
[1646848119488,6.21790459,2745.6,2745.4,0.76321198]
[1646848119687,6.21790459,2745.6,2745.5,0.08643932]
[1646848120089,6.21790459,2745.6,2745.5,0.7650447]
[1646848120789,6.21790459,2745.6,2745.5,0.08643932]
[1646848122011,7.24632365,2745.6,2745.5,0.08643932]
[1646848122819,5.63063012,2745.6,2745.5,0.08643932]
[1646848124223,4.60221106,2745.6,2745.5,0.08643932]
[1646848125465,4.60221106,2745.6,2745.5,1.60114687]
[1646848130518,4.60221106,2745.6,2745.5,1.62300987]
[1646848131923,4.60221106,2745.6,2745.5,2.30161525]
[1646848133374,4.60221106,2745.6,2745.5,1.62300987]
[1646848139423,0.55529857,2746.2,2745.6,5.5]
[1646848139621,0.55529857,2746.2,2745.9,0.0693374]
[1646848139622,4.77663237,2746.1,2745.9,0.0693374]
[1646848139822,1.24665,2746.6,2746.0,1.51470755]
[1646848140022,1.24665,2746.6,2745.9,2.26140113]
[1646848140264,1.24665,2746.6,2746.0,1.51470755]
[1646848140463,1.24665,2746.6,2746.0,2.6048529]
[1646848140667,1.24665,2746.6,2746.1,1.51470755]
[1646848141070,0.00875,2746.6,2746.1,1.51470755]
[1646848142678,0.91082,2746.7,2746.6,0.0175]
[1646848143172,0.91082,2746.7,2746.6,1.53220755]
[1646848156670,0.54615453,2746.9,2746.6,1.53220755]
[1646848156870,0.54615453,2746.9,2746.7,1.51470755]
[1646848157670,0.54615453,2746.9,2746.8,1.51470755]
[1646848157973,0.54615453,2746.9,2746.6,2.20956373]
[1646848158170,0.54615453,2746.9,2746.7,1.51470755]
[1646848158773,0.54615453,2746.9,2746.7,1.55108687]
[1646848159016,0.54615453,2746.9,2746.8,1.51470755]
[1646848159419,0.045008,2747.1,2746.8,1.51470755]
[1646848159622,0.045008,2747.1,2746.8,1.55108513]
[1646848159623,0.00129126,2747.1,2746.8,1.55108513]
[1646848159820,0.54030725,2747.1,2746.9,1.51470755]
[1646848160019,0.53901599,2747.1,2746.7,0.03637932]
[1646848160220,0.54030732,2747.1,2746.7,0.03637932]
[1646848160521,0.91074,2747.0,2746.7,0.03637932]
[1646848161327,0.54030727,2747.1,2746.7,0.03637932]
[1646848162221,0.00129128,2747.1,2746.7,0.03637932]
[1646848162421,0.05897123,2747.3,2746.7,0.03637932]
[1646848162422,0.96964123,2747.3,2746.7,0.03637932]
[1646848162664,0.00410172,2747.1,2746.7,0.03637932]
[1646848162869,0.61687074,2747.3,2747.1,0.00820343]
[1646848163069,2.38813951,2747.3,2747.1,0.00820343]
[1646848163270,2.37938951,2747.3,2747.1,0.00820343]
[1646848164270,5.87938951,2747.3,2747.1,0.00820343]
[1646848164472,10.24394846,2747.3,2747.1,0.00820343]
[1646848164771,9.33309846,2747.3,2747.1,0.00820343]
[1646848165271,9.38692166,2747.3,2747.1,0.00820343]
[1646848165471,3.5,2747.2,2747.1,0.00820343]
[1646848166520,5.88841054,2747.3,2747.1,0.00820343]
[1646848167225,5.88692166,2747.3,2747.1,0.00820343]
[1646848167522,5.8911096,2747.3,2747.1,0.00820343]
[1646848168326,5.88692166,2747.3,2747.1,0.00820343]
[1646848168724,5.8911096,2747.3,2747.1,0.00820343]
[1646848169525,2.95921271,2747.3,2747.1,0.00820343]
[1646848169826,2.05260065,2747.3,2747.1,0.00820343]
[1646848170872,2.04841271,2747.3,2747.1,0.00820343]
[1646848171071,2.05260065,2747.3,2747.1,0.00820343]
[1646848172073,2.04841271,2747.3,2747.1,0.00820343]
[1646848172373,2.05252212,2747.3,2747.1,0.00820343]
[1646848172873,3.5,2747.2,2747.1,0.00820343]
[1646848173073,4.026,2747.2,2747.1,0.00820343]
[1646848173473,7.95329695,2747.2,2747.1,0.00820343]
[1646848174121,8.25329695,2747.2,2747.1,0.00820343]
[1646848174924,7.25370895,2747.2,2747.1,0.00820343]
[1646848176125,3.75370895,2747.2,2747.1,0.00820343]
[1646848176626,7.25370895,2747.2,2747.1,0.00820343]
[1646848177529,3.75370895,2747.2,2747.1,0.00820343]
[1646848179775,0.826,2747.2,2747.1,0.00820343]
[1646848180175,0.826,2747.2,2747.1,1.5224242]
[1646848180176,0.526,2747.2,2747.1,1.5224242]
[1646848182229,1.66267122,2747.3,2747.1,1.5224242]
[1646848182426,1.66267122,2747.3,2747.2,1.51422077]
[1646848182729,1.65872922,2747.3,2747.2,1.51422077]
[1646848187083,1.65872922,2747.3,2747.2,1.51288318]
[1646848188085,0.60173056,2747.3,2747.2,1.51288318]
[1646848188286,0.55779415,2747.3,2747.2,1.51288318]
[1646848188688,0.41356815,2747.3,2747.2,1.51288318]
[1646848188928,1.32425815,2747.3,2747.2,1.51288318]
[1646848199523,4.82425815,2747.3,2747.2,1.51288318]
[1646848199722,1.32425815,2747.3,2747.2,1.51288318]
[1646848202473,4.82425815,2747.3,2747.2,1.51288318]
[1646848202671,5.35025815,2747.3,2747.2,1.51288318]
[1646848202873,1.85025815,2747.3,2747.2,1.51288318]
[1646848203275,5.35025815,2747.3,2747.2,1.51288318]
[1646848203475,16.61,2747.2,2746.7,0.08716772]
[1646848203674,16.61,2747.2,2746.6,0.0175]
[1646848203675,11.11,2747.0,2746.6,0.0175]
[1646848203934,11.11,2746.8,2746.6,0.0175]
[1646848204123,11.11,2746.8,2746.1,0.00394309]
[1646848204124,11.11,2746.6,2746.1,0.00394309]
[1646848204323,1.8224,2746.4,2746.1,3.50394309]
[1646848204526,2.8529249,2747.4,2746.2,1.34055388]
[1646848204723,2.7335,2747.0,2746.6,0.77423627]
[1646848204924,0.91079,2747.1,2746.8,0.021183]
[1646848205123,0.91079,2747.1,2746.7,0.0888497]
[1646848205324,0.91079,2747.1,2746.7,0.76900387]
[1646848205523,0.91079,2747.1,2746.8,0.09047289]
[1646848206125,0.00148569,2747.2,2746.8,0.79167306]
[1646848206325,0.00148569,2747.2,2746.9,0.07991175]
[1646848206525,0.00148569,2747.2,2747.0,0.07149966]
[1646848206825,2.35902666,2747.4,2747.0,0.07149966]
[1646848207024,0.00148577,2747.2,2747.0,0.07149966]
[1646848207972,0.9062327,2747.2,2747.0,0.07149966]
[1646848208375,0.91041821,2747.2,2747.0,0.07149966]
[1646848209876,0.00418551,2747.2,2747.0,0.07149966]
[1646848210577,0.53757666,2747.4,2747.0,1.23901997]
[1646848210776,0.00395902,2747.2,2747.1,0.0832124]
[1646848211181,0.00395902,2747.2,2746.9,0.75501838]
[1646848211620,0.53757666,2747.4,2747.0,0.08980098]
[1646848212019,0.003959,2747.2,2747.0,0.08980098]
[1646848212821,0.53757666,2747.4,2747.0,0.08980098]
[1646848213220,0.00384025,2747.2,2747.0,0.08980098]
[1646848213424,0.91454025,2747.2,2747.0,0.08980098]
[1646848214021,0.9107,2747.2,2747.0,0.08980098]
[1646848214424,0.91454025,2747.2,2747.0,0.08980098]
[1646848214825,12.32454025,2747.2,2746.7,0.68015417]
[1646848215025,12.32454025,2747.2,2746.6,0.68015417]
[1646848215026,11.636,2747.1,2746.6,0.68015417]
[1646848215270,11.636,2747.1,2746.5,0.07623302]
[1646848215271,1.8221,2747.0,2746.5,0.75638719]
[1646848215471,0.999588,2746.8,2746.5,0.07623302]
[1646848215671,0.526,2746.7,2746.5,0.07623302]
[1646848216375,0.526,2746.7,2746.5,0.75638719]
[1646848216771,1.43698,2746.7,2746.5,0.75638719]
[1646848217172,1.43698,2746.7,2746.6,0.0820015]
[1646848217777,0.999588,2746.9,2746.6,0.76215567]
[1646848217977,2.3481,2747.0,2746.7,0.68015417]
[1646848218778,2.3481,2747.0,2746.6,0.0820015]
[1646848218779,3.526,2747.3,2746.8,4.18015417]
[1646848219026,3.526,2747.3,2746.9,0.07430862]
[1646848219027,0.526,2747.3,2746.9,0.07430862]
[1646848219220,0.00392987,2747.2,2746.9,0.07430862]
[1646848219427,0.00392987,2747.2,2746.9,0.75446279]
[1646848219620,0.00392987,2747.2,2747.0,0.09034735]
[1646848220020,0.526,2747.3,2747.0,0.09034735]
[1646848220422,0.00398156,2747.2,2747.0,0.09034735]
[1646848221223,0.00398156,2747.2,2746.7,0.68015417]
[1646848221422,0.526,2747.2,2746.8,0.07421324]
[1646848221631,1.52956956,2747.2,2746.8,0.07421324]
[1646848222326,1.05432158,2746.7,2746.5,0.68015417]
[1646848222523,1.05432158,2746.7,2746.4,0.68015417]
[1646848222524,0.526,2746.7,2746.4,0.68015417]
[1646848222773,0.526,2746.7,2746.5,0.68015417]
[1646848222974,0.526,2746.7,2746.4,0.68015417]
[1646848223577,0.526,2746.7,2746.5,1.5142329]
[1646848223775,0.526,2746.7,2746.6,1.5142329]
[1646848223975,1.43691,2746.7,2746.4,0.68015417]
[1646848224178,1.43691,2746.7,2746.4,2.19438707]
[1646848224577,0.526,2746.7,2746.5,0.08092846]
[1646848224774,0.526,2746.7,2746.6,1.5142329]
[1646848227723,0.91093,2746.7,2746.6,1.5142329]
[1646848227923,1.43693,2746.7,2746.4,1.5142329]
[1646848228125,2.821438,2746.8,2746.7,0.17823204]
[1646848228725,2.821438,2746.8,2746.7,1.69246494]
[1646848228926,3.347438,2746.8,2746.7,1.69246494]
[1646848231170,2.34785,2746.8,2746.7,1.69246494]
[1646848235020,3.347438,2746.8,2746.7,1.69246494]
[1646848236026,3.51755824,2746.8,2746.7,1.69246494]
[1646848238770,4.51755824,2746.8,2746.7,1.69246494]
[1646848242521,3.51797024,2746.8,2746.7,1.69246494]
[1646848243325,2.51797024,2746.8,2746.7,1.69246494]
[1646848250221,0.90271881,2746.8,2746.7,1.69246494]
[1646848253073,0.90271881,2746.8,2746.7,1.69254209]
[1646848254075,1.20271881,2746.8,2746.7,1.69254209]
[1646848259123,0.90271881,2746.8,2746.7,1.69254209]
[1646848260172,1.20271881,2746.8,2746.7,1.69254209]
[1646848264921,0.90271881,2746.8,2746.7,1.69254209]
[1646848270377,0.90271881,2746.8,2746.6,0.021001]
[1646848270580,0.97697742,2746.7,2746.6,0.021001]
[1646848270779,1.09574068,2746.8,2746.7,0.63850147]
[1646848270979,0.92562044,2746.8,2746.7,0.63850147]
[1646848271435,3.94924298,2746.8,2746.7,0.63850147]
[1646848272928,3.93453254,2746.8,2746.7,0.63850147]
[1646848276271,4.23453254,2746.8,2746.7,0.63850147]
[1646848277276,3.93453254,2746.8,2746.7,0.63850147]
[1646848278079,3.93453254,2746.8,2746.7,4.13850147]
[1646848278280,0.17012024,2746.8,2746.7,5.18245564]
[1646848278479,0.17012024,2746.8,2746.7,1.31865564]
[1646848278933,0.17012024,2746.8,2746.7,0.65959747]
[1646848279324,1.08075024,2747.1,2746.7,1.02339747]
[1646848279622,1.08075024,2747.1,2746.9,1.72754469]
[1646848280024,1.08075024,2747.1,2746.9,1.04666208]
[1646848280426,1.08075024,2747.1,2746.9,4.54666208]
[1646848280625,1.08075024,2747.1,2747.0,3.5]
[1646848280827,1.08075024,2747.1,2746.9,1.04666208]
[1646848281428,1.08075024,2747.1,2747.0,3.5]
[1646848282031,1.08075024,2747.1,2746.9,1.72754469]
[1646848282673,1.08075024,2747.1,2746.9,1.04666208]
[1646848283880,1.08075024,2747.1,2746.9,1.72754469]
[1646848284081,1.08075024,2747.1,2747.0,3.5]
[1646848284479,1.08075024,2747.1,2746.9,1.72754469]
[1646848284681,1.08075024,2747.1,2747.0,0.02111]
[1646848286285,1.08075024,2747.1,2746.9,0.70235661]
[1646848286526,1.08075024,2747.1,2746.9,0.021474]
[1646848286828,1.08075024,2747.1,2746.9,0.09804555]
[1646848288227,1.08075024,2747.1,2746.9,0.77892816]
[1646848288429,1.08075024,2747.1,2747.0,3.5]
[1646848289433,1.08075024,2747.1,2747.0,3.521135]
[1646848290279,1.08075024,2747.1,2747.0,0.021135]
[1646848290677,1.08075024,2747.1,2747.0,1.53555245]
[1646848290876,1.28793229,2747.3,2747.0,5.03555245]
[1646848291079,0.00128561,2747.2,2747.1,1.51441745]
[1646848292082,1.58793229,2747.3,2747.1,1.51441745]
[1646848293483,1.59203023,2747.3,2747.1,1.53552345]
[1646848293683,1.59203023,2747.3,2747.2,1.51441745]
[1646848294130,1.59203023,2747.3,2747.2,5.03546545]
[1646848294131,1.29203023,2747.3,2747.2,5.03546545]
[1646848294333,1.29203023,2747.3,2747.2,5.05668545]
[1646848294531,1.28793229,2747.3,2747.2,5.05668545]
[1646848294935,0.91472789,2747.4,2747.2,5.73756806]
[1646848295131,0.91472789,2747.4,2747.3,5.03583245]
[1646848295335,0.91472789,2747.4,2747.3,1.53583245]
[1646848295731,0.91063,2747.4,2747.3,1.53583245]
[1646848296133,1.21063,2747.4,2747.3,5.03583245]
[1646848296332,0.3,2747.4,2747.3,5.03583245]
[1646848296533,0.00409779,2747.5,2747.3,5.83093245]
[1646848296737,0.00409779,2747.5,2747.4,5.03575445]
[1646848296935,1.82081,2747.6,2747.4,5.03575445]
[1646848297139,1.82081,2747.6,2747.5,5.01441745]
[1646848297439,1.82081,2747.6,2747.5,5.03546345]
[1646848297675,1.82081,2747.6,2747.5,1.53546345]
[1646848298679,1.82081,2747.6,2747.5,1.55668045]
[1646848299080,1.82081,2747.6,2747.3,0.021001]
[1646848299280,1.82081,2747.6,2747.2,0.021557]
[1646848299479,4.59354499,2747.6,2747.2,0.021557]
[1646848300083,4.59354499,2747.6,2747.3,0.021263]
[1646848300479,5.50413499,2747.6,2747.3,0.021263]
[1646848300881,5.50797617,2747.6,2747.3,0.021263]
[1646848301283,5.50797617,2747.6,2746.9,0.68088261]
[1646848301606,5.50797617,2747.6,2746.8,0.021001]
[1646848301607,0.91082,2747.3,2746.8,0.021001]
[1646848301942,1.77750198,2747.2,2746.8,0.021001]
[1646848302347,1.77750198,2747.2,2746.8,0.042226]
[1646848302651,0.3,2747.3,2747.0,0.021557]
[1646848302845,0.3,2747.3,2747.1,0.02132]
[1646848303044,2.68628,2747.6,2747.1,0.02132]
[1646848303248,0.00372965,2747.3,2747.2,0.021307]
[1646848303646,0.00372965,2747.3,2747.1,0.042321]
[1646848303845,0.00372965,2747.3,2747.1,0.02132]
[1646848304247,1.43658,2747.6,2747.1,0.02132]
[1646848304446,1.43658,2747.6,2747.3,0.02153]
[1646848304646,1.43658,2747.6,2747.3,0.042757]
[1646848304846,0.91058,2747.6,2747.3,0.042757]
[1646848305047,0.91058,2747.6,2747.5,0.021557]
[1646848305284,0.91058,2747.6,2747.4,0.021408]
[1646848305480,1.49769075,2747.8,2747.3,0.021227]
[1646848305682,0.00373664,2747.6,2747.3,0.021227]
[1646848305880,0.00373664,2747.6,2747.0,4.18088261]
[1646848306480,1.49769075,2747.8,2747.0,4.18088261]
[1646848306884,0.00373677,2747.4,2747.0,4.18088261]
[1646848307680,0.91049,2747.6,2747.0,4.18088261]
[1646848307889,0.91049,2747.6,2747.1,0.68088261]
[1646848308085,0.00373686,2747.3,2747.1,0.68088261]
[1646848308483,0.00373686,2747.3,2747.2,4.67540912]
[1646848308683,0.00373686,2747.3,2747.2,1.17540912]
[1646848308941,0.91049,2747.6,2747.2,4.67540912]